Cogmind - Beta 12 X4 @@@ ROGUE MODE // 2022.12.08 @ 19:54:58 Player: Lunatic Blue Result: Self-destructed Performance ------------- Evolutions (2) 1000 Regions Visited (5) 1000 Robots Destroyed (8) 40 Value Destroyed (82) 82 Prototype IDs (2) 40 Alien Tech Used (0) 0 Bonus (0) 0 TOTAL SCORE: 2162 Bonus ------- None Cogmind --------- Core Integrity 502/550 Matter 72/300 Energy 100/100 System Corruption 0% Temperature Cool (0) Movement Flying (120) Ox1 Location -8/Materials Parts ------- > --- POWER (1) -------- (None) > --- PROPULSION (4) --- Flight Unit > --- UTILITY (4) ------ Small Storage Unit Signal Interpreter Experimental Targeting Computer > --- WEAPON (2) ------- (None) > --- INVENTORY (8) ---- Ion Engine Cooled Ion Engine Small Laser Heavy Assault Rifle Autogun Autogun Rocket Launcher Rocket Launcher Peak State ------------ > --- POWER ------------ Cooled Ion Engine > --- PROPULSION ------- Flight Unit Flight Unit Flight Unit > --- UTILITY ---------- Small Storage Unit Visual Processing Unit Signal Interpreter > --- WEAPON ----------- Autogun Autogun > --- INVENTORY -------- Ion Engine Flight Unit Sensor Array Small Laser [Rating: 14] Favorites ----------- Power Ion Engine Engine Ion Engine Propulsion Aluminum Leg Leg Aluminum Leg Flight Unit Flight Unit Utility Small Storage Unit Device Sensor Array Storage Small Storage Unit Processor Signal Interpreter Weapon Autogun Ballistic Gun Autogun Special Weapon Plasma Cutter Build | -11 -10 -10 -9 -9 -8 ------- Run | Scr Mat Min Mat Sto Mat Slots Evolved 4 | . . . 2 . 2 Power . | . . . . . . Propulsion 2 | . . . 1 . 1 Utility 2 | . . . 1 . 1 Weapon . | . . . . . . Parts Attached 25 | 6 6 . 7 5 1 Power 4 | 1 1 . 1 . 1 Engine 4 | 1 1 . 1 . 1 Core . | . . . . . . Reactor . | . . . . . . Propulsion 8 | 2 . . 3 3 . Treads . | . . . . . . Leg 2 | 2 . . . . . Wheel . | . . . . . . Hover . | . . . . . . Flight 6 | . . . 3 3 . Utility 6 | 1 2 . 2 1 . Device 2 | . 1 . 1 . . Storage 1 | 1 . . . . . Processor 3 | . 1 . 1 1 . Hackware . | . . . . . . Protection . | . . . . . . Artifact . | . . . . . . Weapon 7 | 2 3 . 1 1 . Energy Gun . | . . . . . . Energy Cannon . | . . . . . . Ballistic Gun 6 | 2 3 . 1 . . Ballistic Cannon . | . . . . . . Launcher . | . . . . . . Special Weapon 1 | . . . . 1 . Impact Weapon . | . . . . . . Slashing Weapon . | . . . . . . Piercing Weapon . | . . . . . . Special Melee Weapon . | . . . . . . Unidentified Prototypes 2 | . 1 . . 1 . Parts Lost 5 | . . . . 3 2 Power 1 | . . . . . 1 Propulsion 3 | . . . . 2 1 Utility 1 | . . . . 1 . Weapon . | . . . . . . Highest Loss Streak 2 | . . . . 2 2 To Critical Strikes . | . . . . . . Average Slot Usage (%) 87 | . 99 100 82 70 53 Engine 12 | . 14 14 11 8 8 Leg 18 | . 28 28 . . . Flight 8 | . . . 33 30 18 Device 5 | . 13 . 5 4 . Storage 12 | . 14 14 11 11 9 Processor 10 | . . 14 16 11 18 Ballistic Gun 18 | . 28 28 5 . . Naked Turns . | . . . . . . Heaviest Build 20 | 12 20 19 14 12 10 Greatest Support 20 | 20 20 20 12 12 8 Greatest Overweight (x) 1 | . . . 1 1 1 Average Overweight (x) . | . . . . . . Largest Inventory Capacity 8 | 8 8 8 8 8 8 Average Capacity 7 | 6 8 8 8 8 8 Most Carried 8 | 3 8 8 8 7 8 Average Carried 6 | 1 6 8 6 6 7 Final Capacity 8 | 8 8 8 8 8 8 Final Carried 8 | 3 8 8 6 7 8 Class Distribution -------------------- 86% | Mutant 13% | Scavenger-Mutant Dominant Class ---------------- Mutant | -10/Materials Mutant | -10/Mines Mutant | -9/Materials Scavenger-Mutant | -9/Storage Mutant | -8/Materials Resources | -11 -10 -10 -9 -9 -8 ----------- Run | Scr Mat Min Mat Sto Mat Matter Collected 401 | 215 106 80 . . . Remotely . | . . . . . . Salvage Created 176 | . 137 39 . . . Parts 17 | . 11 6 . . . Haulers Intercepted . | . . . . . . Recyclers Shooed . | . . . . . . Parts Field Recycled . | . . . . . . Retrieved Matter . | . . . . . . Parts Self-Destructed . | . . . . . . Prevented . | . . . . . . Kills | -11 -10 -10 -9 -9 -8 ------- Run | Scr Mat Min Mat Sto Mat Combat Hostiles Destroyed 6 | . 3 3 . . . Guns 6 | . 3 3 . . . Classes Destroyed 3 | . 3 . . . . Recycler 1 | . 1 . . . . Watcher 1 | . 1 . . . . Swarmer 6 | . 3 3 . . . Best Kill Streak 3 | . 3 3 . . . Combat Bots Only 3 | . 3 3 . . . Max Kills in Single Turn 1 | . 1 1 . . . Gunslinging . | . . . . . . Exploded . | . . . . . . Melee . | . . . . . . Uniques/NPCs Destroyed . | . . . . . . Combat | -11 -10 -10 -9 -9 -8 -------- Run | Scr Mat Min Mat Sto Mat Damage Taken 654 | . 92 146 17 283 116 Core 208 | . 20 . 17 123 48 Absorbed by Shields . | . . . . . . Core Remaining (%) 85 | 100 . 92 . 65 . Volleys Fired 41 | . 26 12 1 2 . Largest 2 | . 2 2 1 1 . Hottest 46 | . 40 46 23 20 . Shots Fired 79 | . 52 24 1 2 . Gun 77 | . 52 24 1 . . Cannon . | . . . . . . Launcher . | . . . . . . Special 2 | . . . . 2 . Kinetic 77 | . 52 24 1 . . Thermal 2 | . . . . 2 . Explosive . | . . . . . . Electromagnetic . | . . . . . . Robot Hit Streak 5 | . 5 3 . . . Robot Miss Streak 5 | . 4 5 1 . . Penetration Max . | . . . . . . Secondary Targets 2 | . 2 . . . . Max Gunslinging Chain 1 | . 1 . . . . Shots Hit Robots 35 | . 25 10 . . . Core Hits 11 | . 8 3 . . . Critical Kills . | . . . . . . Critical Parts Destroyed . | . . . . . . Critical Strikes . | . . . . . . Melee Attacks . | . . . . . . Impact . | . . . . . . Slashing . | . . . . . . Piercing . | . . . . . . Sneak Attacks . | . . . . . . Combat Hostiles . | . . . . . . Follow-up Attacks . | . . . . . . Damage Inflicted 442 | . 290 152 . . . Guns 442 | . 290 152 . . . Cannons . | . . . . . . Explosions . | . . . . . . Melee . | . . . . . . Ramming . | . . . . . . Kinetic 442 | . 290 152 . . . Thermal . | . . . . . . Explosive . | . . . . . . Electromagnetic . | . . . . . . Impact . | . . . . . . Slashing . | . . . . . . Piercing . | . . . . . . Highest Corruption . | . . . . . . Average Corruption . | . . . . . . Corruption Purged . | . . . . . . Corruption Blocked . | . . . . . . Overload Shots . | . . . . . . Overflow Damage . | . . . . . . Projectiles . | . . . . . . Explosions . | . . . . . . Melee . | . . . . . . Knockbacks . | . . . . . . Impact . | . . . . . . Kinetic . | . . . . . . Secondary . | . . . . . . Self-Inflicted Damage . | . . . . . . Shots . | . . . . . . Rammed . | . . . . . . Targets Rammed . | . . . . . . Kicked . | . . . . . . Crushed . | . . . . . . Highest Temperature 16 | . . 4 3 16 4 Average Temperature 3 | . . 2 3 11 4 Received Heat Transfer 195 | . . . . 141 54 Siege Activations . | . . . . . . Robots Corrupted . | . . . . . . Combat Hostiles . | . . . . . . Parts Fried . | . . . . . . Impact Corruptions . | . . . . . . Robots Melted . | . . . . . . Combat Hostiles . | . . . . . . Parts Melted . | . . . . . . Heat Transferred . | . . . . . . Parts Sabotaged . | . . . . . . Parts Stolen . | . . . . . . Parts Stripped . | . . . . . . Power Chain Reactions . | . . . . . . Missiles Intercepted . | . . . . . . Alert | -11 -10 -10 -9 -9 -8 ------- Run | Scr Mat Min Mat Sto Mat Peak Influence 149 | . 97 107 76 138 149 Initial 57 | . . 37 41 31 57 Average 71 | . 67 91 55 35 100 Maximum Alert Level . | . . . . . . Low Security (%) 100 | 100 100 100 100 100 100 Level 1 . | . . . . . . Level 2 . | . . . . . . Level 3 . | . . . . . . Level 4 . | . . . . . . Level 5 . | . . . . . . High Security . | . . . . . . Max Security . | . . . . . . Squads Dispatched 2 | . . . 1 1 . Investigation . | . . . . . . Extermination . | . . . . . . Reinforcement 2 | . . . 1 1 . Assault . | . . . . . . Garrison . | . . . . . . Intercept . | . . . . . . Searches Triggered . | . . . . . . Construction Impeded . | . . . . . . Haulers Reinforced . | . . . . . . Active Scanning Responses . | . . . . . . Cargo Convoy Interrupts . | . . . . . . Stealth | -11 -10 -10 -9 -9 -8 --------- Run | Scr Mat Min Mat Sto Mat Distress Signals 5 | . . . 1 3 1 Communications Jammed . | . . . . . . Distress Signals . | . . . . . . Times Spotted 35 | . 6 3 4 18 4 Peak Tracking Total 12 | . 6 3 5 12 3 Tactical Retreats 6 | . . . . 5 1 Traps | -11 -10 -10 -9 -9 -8 ------- Run | Scr Mat Min Mat Sto Mat Traps Triggered 2 | . . . . 2 . Indirectly . | . . . . . . Trap Hack Attempts . | . . . . . . Triggered . | . . . . . . Disarmed . | . . . . . . Reprogrammed . | . . . . . . Reused . | . . . . . . Traps Extracted . | . . . . . . Installed . | . . . . . . Triggered . | . . . . . . Machines | -11 -10 -10 -9 -9 -8 ---------- Run | Scr Mat Min Mat Sto Mat Machines Disabled . | . . . . . . Max in Single Turn . | . . . . . . Garrison Access 2 | . . . . 1 1 Machines Sabotaged . | . . . . . . Overloaded Fab Kills . | . . . . . . Hacking | -11 -10 -10 -9 -9 -8 --------- Run | Scr Mat Min Mat Sto Mat Machines Accessed 11 | . 2 . 1 6 2 Terminals 9 | . 2 . 1 5 1 Fabricators . | . . . . . . Repair Stations . | . . . . . . Recycling Units . | . . . . . . Scanalyzers . | . . . . . . Garrison Access 2 | . . . . 1 1 Total Hacks 25 | . 4 . 2 12 7 Successful 12 | . . . 2 6 4 Failed 13 | . 4 . . 6 3 Catastrophic 1 | . 1 . . . . Database Lockouts . | . . . . . . Manual 14 | . 4 . 2 3 5 Terminals 20 | . 4 . 2 9 5 Fabricators . | . . . . . . Repair Stations . | . . . . . . Recycling Units . | . . . . . . Scanalyzers . | . . . . . . Garrison Access 5 | . . . . 3 2 Terminal Hacks 6 | . . . 1 4 1 Open Door 3 | . . . . 3 . Unreport Threat 1 | . . . . 1 . Zone Layout 2 | . . . 1 . 1 Fabricator Hacks . | . . . . . . Repair Station Hacks . | . . . . . . Recycling Unit Hacks . | . . . . . . Scanalyzer . | . . . . . . Garrison Access Hacks 2 | . . . . 1 1 Seal Access 2 | . . . . 1 1 Unauthorized Hacks 4 | . . . 1 1 2 Terminals 4 | . . . 1 1 2 Botnet 3 | . . . 1 1 1 Operators 1 | . . . . . 1 Fabricators . | . . . . . . Repair Stations . | . . . . . . Recycling Units . | . . . . . . Scanalyzers . | . . . . . . Garrison Access . | . . . . . . Data Cores Recovered . | . . . . . . Used . | . . . . . . Hacking Detections 9 | . 2 . 1 5 1 Full Trace Events . | . . . . . . Feedback Events . | . . . . . . Feedback Blocked . | . . . . . . Robot Schematics Acquired . | . . . . . . Robots Built . | . . . . . . Authchips . | . . . . . . Time . | . . . . . . Total Robot Build Rating . | . . . . . . Part Schematics Acquired . | . . . . . . Parts Built . | . . . . . . Authchips . | . . . . . . Time . | . . . . . . Total Part Build Rating . | . . . . . . Parts Repaired . | . . . . . . Time . | . . . . . . Parts Recycled . | . . . . . . Recycled Matter . | . . . . . . Retrieved Matter . | . . . . . . Retrieved Components . | . . . . . . Parts Scanalyzed . | . . . . . . Part Schematics Acquired . | . . . . . . Parts Damaged . | . . . . . . Bothacking | -11 -10 -10 -9 -9 -8 ------------ Run | Scr Mat Min Mat Sto Mat Used RIF Installer . | . . . . . . Robots Hacked . | . . . . . . Non-combat . | . . . . . . Combat . | . . . . . . Robot Hacks Applied . | . . . . . . Relay Couplers Released . | . . . . . . Fabnet Peak Effective % . | . . . . . . Robots Rewired . | . . . . . . Allies Hacked . | . . . . . . Hacks Repelled . | . . . . . . Allies | -11 -10 -10 -9 -9 -8 -------- Run | Scr Mat Min Mat Sto Mat Total Allies . | . . . . . . Largest Group . | . . . . . . Highest-Rated Group . | . . . . . . Highest-Rated Ally . | . . . . . . Total Orders . | . . . . . . Ally Attacks . | . . . . . . Total Damage . | . . . . . . Kills . | . . . . . . Allies Corrupted . | . . . . . . Allies Melted . | . . . . . . Intel | -11 -10 -10 -9 -9 -8 ------- Run | Scr Mat Min Mat Sto Mat Robot Analysis Total . | . . . . . . Derelict Logs Recovered 1 | . . 1 . . . Drone Launches . | . . . . . . Drone Recoveries . | . . . . . . Exploration | -11 -10 -10 -9 -9 -8 ------------- Run | Scr Mat Min Mat Sto Mat Turns Passed 1138 | 64 344 366 40 163 161 Spaces Moved 1136 | 44 214 268 72 397 141 Core 4 | 4 . . . . . Treads . | . . . . . . Legs 522 | 40 214 268 . . . Wheels . | . . . . . . Hover . | . . . . . . Flight 610 | . . . 72 397 141 Fastest Speed 34 | 50 120 120 34 34 37 Average Speed 83 | 113 120 120 37 34 111 Slowest Speed 120 | 120 120 120 114 117 117 Overloaded Moves . | . . . . . . Propulsion Burnouts . | . . . . . . Robots Hopped 7 | . . . . 7 . Cave-ins Triggered . | . . . . . . Exploration Rate (%) 33 | 3 30 72 21 57 17 Regions Visited 5 Branch Regions 2 Pre-discovered Areas 1 | . . 1 . . . Known Exits Taken 4 | . 1 1 1 1 . Unknown Exits Taken 1 | 1 . . . . . Scrap Searched 1 | . . 1 . . . Spaces Dug . | . . . . . . Terrain Destroyed . | . . . . . . Melee . | . . . . . . Projectile . | . . . . . . AOE . | . . . . . . Terrain Rammed . | . . . . . . Walls Destroyed . | . . . . . . Machines Disabled . | . . . . . . Actions | -11 -10 -10 -9 -9 -8 --------- Run | Scr Mat Min Mat Sto Mat Total 1239 | 55 254 293 85 409 143 Wait 25 | 3 . 12 . 10 . Move 1119 | 43 213 267 71 384 141 Hop 5 | . . . . 5 . Pick Up 13 | 3 5 1 2 1 1 Fast Attach 12 | 6 2 . . 3 1 Attach 7 | . . . 5 2 . Detach 4 | . . . 2 2 . Swap 6 | . 4 . 2 . . Drop 7 | . 4 1 2 . . Fire 41 | . 26 12 1 2 . Melee . | . . . . . . Ram . | . . . . . . Kick . | . . . . . . Crush . | . . . . . . Escape Stasis . | . . . . . . Rewire . | . . . . . . Trap . | . . . . . . Miscellaneous . | . . . . . . Route ------- -11/Scrapyard -10/Materials (discovered 2 exits: *Mat / *Min) -10/Mines -9/Materials -9/Storage -8/Materials History --------- Turn | Location | Event 21 | -11/Scrapyard | Discovered new exit (range 15) 65 | -11/Scrapyard | Entered Materials 232 | -10/Materials | Discovered new exit (range 15) 313 | -10/Materials | Build established: Mutant 362 | -10/Materials | Discovered new exit (range 9) 400 | -10/Materials | Identified exit to Materials 408 | -10/Materials | Identified exit to Mines 409 | -10/Materials | Entered Mines 410 | -10/Mines | Learned location of Storage (-9) 442 | -10/Mines | Learned Materials stockpile data 605 | -10/Mines | Found a hidden stash of uninstalled traps 766 | -10/Mines | Discovered exit to Materials (range 5) 775 | -10/Mines | Entered Materials 775 | -9/Materials | Evolved 2 slots: Propulsion x1, Utility x1 808 | -9/Materials | Discovered new exit (range 9) 814 | -9/Materials | Identified exit to Storage 815 | -9/Materials | Entered Storage 960 | -9/Storage | Found Prototype Processor 960 | -9/Storage | Identified Exp. Targeting Computer 973 | -9/Storage | Discovered new exit (range 14) 977 | -9/Storage | Identified exit to Materials 978 | -9/Storage | Entered Materials 978 | -8/Materials | Evolved 2 slots: Propulsion x1, Utility x1 1139 | -8/Materials | Self-destructed Last Messages --------------- >>Trojan(Operators) Trojan loaded successfully. Testing... Operator tracking enabled and active. >>Trojan(Botnet) Trojan loaded successfully. Testing... Terminal linked with 0 systems. Awaiting botnet instructions. >>Layout(Zone) Retrieving Zone 1H layout... Downloaded map data. 01031_ Connecting with Garrison Access... >>Seal Access door sealed. 01033_ W-25 Informer sends out distress signal. 01127_ Acquired Rocket Launcher. 01137_ Critical hit (Burn: +37). 01138_ Flight Unit destroyed. 01138_ Lgt. Deuterium Engine destroyed. Map ----- +----------------------------------------------------+ | ?????# #????????????????????????????????? | | ###### #????????????????????????????????? | | ## #????????????????????????????????? | | # ????????????????????????????????? | | """ + T ????????????????????????????????? | | """ # ????????????????????????????????? | | """ ## #??# ????????????????????????????? | | ## #?## ???????#???????????????????? | | ###### #?# """ #???????????????????? | | ?????# #??# """"" #???????????????????? | | ###### #??#"" """"" #???????????????????? | | #??#"Y """"" #???????????????????? | | #######????" """ #???????????????????? | | #???????????? ?????????????????????? | | #?????????????#/#??????????????????????? | | #????########## #???????###########????? | | #????# # #???????# #????? | | #????# """# #???##### #????? | | #????# """# #?? # / #????? | | #????# """# ##? # #????? | | #????# + # """ # [[* #????? | | #????# """# # """ # [* #????? | | ###### """# + """ # [* ?????? | | + """# # #??! ???????? | | ####### # ############+###??????? | | ??????########## @ #??????? | | ???????????????# Y Y #??????? | | ???????????????########### ####+#####??? | | #####?????????????????#### #/ ##?? | | """ #????????????????##! # """ #?? | | """ #????????????????#! # R" ##?? | | """ #????????????????#! # """ #??? | | #????????????????#! + #??? | | #????????????????#! # #??? | | #????????????????##! # // ! #??? | | #####?????????????????####### // #??? | | ????????????????????????????# / ! #??? | | ????????????????????????????##########??? | | ????????????????????????????????????????? | | ????????????????????????????????????????? | | ????????????????????????????????????????? | | ????????????????????????????????????????? | | ????????????????????????????????????????? | | ????????????????????????????????????????? | | ????????????????????????????????????????? | | ????????????????????????????????????????? | | ????????????????????????????????????????? | | ????????????????????????????????????????? | | ????????????????????????????????????????? | | | +----------------------------------------------------+ Best States ------------- Heat Dissipation 31 Energy Generation 14 Energy Capacity 280 Matter Stores 255 Matter Capacity 300 Sight Range 18 Robot Scan Range 14 Terrain Scan Density 10 Evasion (%) 63 Targeting Accuracy 12 Item Schematics ----------------- None Robot Schematics ------------------ None Fabricated ------------ Nothing Alien Tech Used ----------------- None Achievements -------------- None Challenges ------------ None Game ------ Seed ConcussiveSigixCarapace Manual? 0 Play Time 00:11:06 Cumulative 126.2 hours Start 2022.12.08 @ 19:44:31 End 2022.12.08 @ 19:54:58 Sessions 1 Manual Loads 0 Difficulty Rogue Special Mode None Game No. 226 Rogue 226 Adventurer 0 Explorer 0 Win Type - Total 2 Types 1/0/1/0/0/0/0/0/0 Lore% 65 Gallery% 72 Achievement% 53 Wizard Run 0 Options --------- ASCII 0 Keyboard 0 Movement Mouse Keybinds 0 Fullscreen 1 Font 18/SmallcapsGlow Map View 76x50 Tactical HUD 1 Map Filters NONE Filters NONE Steam 1 RUN: d47140b1-8a38-473f-99f2-407634e8689d